bitfinex-derivatives/quotes_ETHF0:USTF0_20210705
["timestamp","ask_amount","ask_price","bid_price","bid_amount"]
[1625508033239,2.20527,2226.1,2225.6,1.1191]
[1625508033341,2.20527,2226.1,2223.7,2.6125]
[1625508033943,2.20527,2224.2,2223.8,2.20527]
[1625508034443,2.20527,2224.2,2222.4,13.8868]
[1625508034640,5.40917,2224.2,2222.4,13.8868]
[1625508034745,5.40917,2224.2,2221.7,53.5336]
[1625508035047,5.40917,2224.2,2221.2,3.2347]
[1625508035147,5.40917,2224.2,2221.3,0.05]
[1625508035447,5.40917,2224.2,2221.3,16.346994]
[1625508035895,5.40917,2224.2,2223.9,2.20527]
[1625508036099,4.759,2226.4,2223.9,2.20527]
[1625508036195,14.1155,2227.9,2223.9,2.20527]
[1625508036395,0.14053973,2227.8,2223.9,2.20527]
[1625508036708,0.1405235,2227.9,2223.9,2.20527]
[1625508036898,0.1405235,2227.9,2223.9,5.52657]
[1625508037098,0.1405235,2227.9,2224.0,16.40895]
[1625508037911,2.20527,2226.4,2226.3,2.20527]
[1625508038265,2.20527,2226.4,2226.0,2.20527]
[1625508039267,4.62836729,2228.2,2226.0,2.20527]
[1625508039869,4.62836729,2228.2,2226.8,2.20527]
[1625508039971,2.20527,2226.9,2226.8,2.20527]
[1625508040342,4.62836729,2228.2,2226.8,2.20527]
[1625508041944,2.20527,2227.2,2225.1,2.2096]
[1625508042027,4.69817,2227.2,2223.5,15.1627]
[1625508042244,9.45717,2227.2,2223.5,15.1627]
[1625508042540,9.45717,2227.2,2224.1,42.0603]
[1625508043096,9.45717,2227.2,2224.8,16.329739]
[1625508043204,4.69817,2227.2,2224.8,19.205339]
[1625508043346,4.62836729,2228.2,2224.8,19.205339]
[1625508043617,4.809,2230.0,2224.9,5.0]
[1625508044014,2.20527,2229.8,2229.7,2.20527]
[1625508044408,2.20527,2229.8,2229.5,4.8434907]
[1625508044509,0.05,2230.0,2229.5,4.8434907]
[1625508044815,0.0021,2230.0,2229.5,4.8434907]
[1625508045324,0.0021,2230.0,2228.3,2.6692]
[1625508045807,0.0021,2230.0,2228.3,51.8626]
[1625508046008,2.20737,2230.0,2228.3,51.8626]
[1625508046116,2.20737,2230.0,2227.0,3.005]
[1625508046308,4.55327,2230.0,2227.0,3.005]
[1625508046410,4.55327,2230.0,2228.4,16.237364]
[1625508046664,4.55327,2230.0,2227.6,3.3754]
[1625508046764,4.55327,2230.0,2227.1,16.347668]
[1625508046866,4.55327,2230.0,2225.1,5.0]
[1625508046978,4.55327,2230.0,2226.2,5.0]
[1625508047077,2.348,2230.0,2226.1,15.4557]
[1625508047173,2.348,2230.0,2228.1,52.7464]
[1625508047365,0.21,2232.1,2228.1,52.7464]
[1625508047366,0.21,2232.1,2228.1,55.4346]
[1625508047466,0.21,2232.1,2228.1,55.4846]
[1625508047562,0.21,2232.1,2228.2,16.372108]
[1625508047669,0.21,2232.1,2228.3,14.3446]
[1625508047966,2.20527,2231.0,2230.9,2.20527]
[1625508048166,2.20527,2231.0,2229.7,2.4922]
[1625508048832,2.20527,2231.0,2229.8,16.276864]
[1625508049549,2.20527,2231.0,2229.1,2.8935]
[1625508049982,2.20527,2229.9,2229.7,2.20527]
[1625508050181,3.0363,2231.6,2229.7,2.20527]
[1625508050281,3.0363,2231.6,2229.7,4.50127]
[1625508051233,0.21,2232.1,2229.7,4.50127]
[1625508051333,0.21,2232.1,2229.8,16.213113]
[1625508051937,2.20527,2231.1,2231.0,2.20527]
[1625508052867,0.21,2232.1,2231.0,2.20527]
[1625508052960,0.21,2232.1,2231.0,4.65277]
[1625508053246,4.759,2235.2,2231.0,4.65277]
[1625508053940,4.759,2235.2,2232.0,2.20527]
[1625508054041,2.20527,2232.1,2229.1,2.8935]
[1625508054446,2.324,2233.1,2224.9,1.0]
[1625508054544,3.406,2233.8,2228.1,57.7464]
[1625508054648,3.406,2233.8,2228.1,52.7464]
[1625508054947,3.406,2233.8,2228.7,16.37056]
[1625508055047,3.406,2233.8,2229.1,1.15]
[1625508055150,3.406,2233.8,2229.1,4.3217]
[1625508055348,3.406,2233.8,2229.2,16.313522]
[1625508055997,2.20527,2231.8,2231.7,2.20527]
[1625508056200,2.20527,2231.8,2231.4,2.20527]
[1625508056401,2.20527,2231.8,2229.1,4.3217]
[1625508056514,4.86057,2231.8,2229.1,1.15]
[1625508057002,4.86057,2231.8,2229.2,16.166878]
[1625508057503,4.86057,2231.8,2228.2,13.8074]
[1625508058006,2.20527,2230.4,2228.2,13.8074]
[1625508058581,5.44817,2230.4,2228.3,16.206676]
[1625508058961,5.44817,2230.4,2228.3,18.680976]
[1625508059063,5.44817,2230.4,2228.3,2.4743]
[1625508059265,3.2429,2230.4,2228.4,16.321513]
[1625508059410,3.2429,2230.4,2228.8,0.05]
[1625508059507,3.2429,2230.4,2228.8,3.393]
[1625508059606,2.789,2232.3,2228.8,3.393]
[1625508059707,2.789,2232.3,2228.9,16.179617]
[1625508060029,2.789,2232.3,2229.8,2.20527]
[1625508060030,2.20527,2229.9,2229.8,2.20527]
[1625508060526,2.20527,2229.9,2227.7,14.2922]
[1625508060846,2.20527,2229.9,2215.4,2.28140594]
[1625508060934,2.20527,2229.9,2223.3,0.9086]
[1625508061121,2.20527,2229.9,2224.9,15.204]
[1625508061529,2.20527,2229.9,2226.3,16.177119]
[1625508062039,2.9822,2230.3,2226.3,16.177119]
[1625508062040,2.20527,2228.0,2227.6,2.20527]
[1625508062113,5.35997,2228.0,2226.3,16.177119]
[1625508062435,5.35997,2228.0,2225.9,0.05]
[1625508062578,5.35997,2228.0,2224.9,15.204]
[1625508063295,5.35997,2228.0,2225.0,16.28133]
[1625508064066,2.20527,2226.5,2226.4,2.20527]
[1625508064167,2.20527,2226.5,2225.0,16.28133]
[1625508064366,2.20527,2226.5,2221.7,5.0]
[1625508064524,2.20527,2226.5,2222.1,0.8977]
[1625508064818,28.2854,2230.2,2222.1,0.8977]
[1625508065026,28.2854,2230.2,2224.1,45.2199]
[1625508065222,28.2854,2230.2,2224.2,16.43143]
[1625508065421,28.2854,2230.2,2224.2,14.1198]
[1625508065422,16.160162,2230.1,2224.2,14.1198]
[1625508065521,16.160162,2230.1,2224.3,19.0706]
[1625508065621,19.518262,2230.1,2224.3,19.0706]
[1625508065722,3.3581,2230.1,2224.3,19.0706]
[1625508065819,3.3581,2230.1,2224.4,16.434781]
[1625508066020,2.20527,2227.1,2227.0,2.20527]
[1625508067025,2.20527,2227.1,2224.3,14.0706]
[1625508067141,4.44947,2227.1,2224.2,14.1198]
[1625508068060,2.20527,2225.6,2225.2,2.20527]
[1625508068261,2.2442,2227.1,2225.2,2.20527]
[1625508069969,2.2442,2227.1,2225.0,2.20527]
[1625508070066,4.41054,2225.1,2225.0,2.20527]
[1625508071184,4.41054,2225.1,2224.7,2.20527]
[1625508071277,4.41054,2225.1,2222.2,14.7566]
[1625508072079,2.20527,2223.6,2223.3,2.20527]
[1625508072277,2.20527,2223.6,2223.1,2.20527]
[1625508072479,1.13948038,2223.6,2223.1,2.20527]
[1625508073342,2.20527,2223.8,2223.1,2.20527]
[1625508073848,2.20527,2223.8,2220.1,14.4551]
[1625508073946,5.27527,2223.8,2220.1,14.4551]
[1625508074045,2.20527,2223.1,2222.9,2.20527]
[1625508074147,3.4312,2223.1,2222.9,2.20527]
[1625508074394,0.991,2223.1,2222.9,2.20527]
[1625508074509,2.2152,2225.0,2222.9,2.20527]
[1625508074608,5.0,2227.5,2222.9,2.20527]
[1625508074718,5.0,2227.5,2222.9,5.26677]
[1625508075247,21.195685,2226.8,2222.9,5.26677]
[1625508075350,18.675185,2226.8,2222.9,5.26677]
[1625508075550,2.4795,2226.8,2223.0,16.430356]
[1625508075751,2.4795,2226.8,2222.9,2.20527]
[1625508075851,16.42495,2226.7,2223.0,2.3428]
[1625508076051,2.4795,2226.8,2223.0,2.3428]
[1625508076052,2.20527,2223.8,2223.7,2.20527]
[1625508076551,2.20527,2223.8,2223.4,2.20527]
[1625508077356,2.20527,2223.8,2218.0,1.0]
[1625508077453,2.20527,2223.8,2217.2,1.1]
[1625508077553,2.20527,2223.8,2217.3,1.0]
[1625508077654,2.20527,2223.8,2220.0,5.05]
[1625508077954,2.20527,2223.8,2220.8,0.9093]
[1625508078073,2.20527,2223.8,2223.7,4.41054]
[1625508078157,2.20527,2223.8,2223.7,7.00464]
[1625508078257,2.20527,2223.8,2223.7,2.5941]
[1625508079262,2.20527,2223.8,2222.2,2.2936]
[1625508079962,2.20527,2223.8,2222.3,16.306002]
[1625508080063,2.20527,2223.8,2223.6,2.20527]
[1625508080663,2.20527,2223.8,2223.3,2.20527]
[1625508080866,2.20527,2223.8,2221.2,40.789]
[1625508081464,2.20527,2223.8,2221.3,16.325413]
[1625508081563,2.20527,2223.8,2221.3,19.170413]
[1625508082119,2.20527,2223.8,2223.6,2.20527]
[1625508082224,2.20527,2223.8,2223.6,5.39957]
[1625508083382,5.0,2227.4,2223.6,3.1943]
[1625508083483,0.1430595,2227.3,2223.6,3.1943]
[1625508083985,16.285181,2227.2,2223.6,3.1943]
[1625508084089,5.0,2227.1,2223.6,3.1943]
[1625508084187,2.20527,2224.1,2224.0,2.20527]
[1625508084286,2.20527,2224.1,2223.4,2.20527]
[1625508084690,2.20527,2224.1,2222.5,28.072]
[1625508084789,2.20527,2224.1,2222.5,13.9647]
[1625508084991,2.20527,2224.1,2219.6,5.0]
[1625508085293,2.20527,2224.1,2220.1,13.9383]
[1625508085692,2.20527,2224.1,2221.4,16.235489]
[1625508085997,2.20527,2224.1,2220.1,13.9383]
[1625508086192,2.20527,2223.2,2223.0,2.20527]
[1625508087552,2.20527,2223.2,2220.2,15.0136]
[1625508087553,4.42327,2223.2,2220.2,15.0136]
[1625508088151,4.42327,2223.2,2221.8,2.20527]
[1625508088152,2.20527,2221.9,2221.8,2.20527]
[1625508088604,3.2592,2222.6,2221.8,2.20527]
[1625508089267,3.2592,2222.6,2221.6,2.20527]
[1625508089560,3.2592,2222.6,2220.2,15.0136]
[1625508089861,3.2592,2222.6,2220.1,13.9383]
[1625508090176,3.2592,2222.6,2220.1,2.20527]
[1625508090177,2.20527,2220.2,2220.1,2.20527]
[1625508090269,2.20527,2220.2,2219.9,2.20527]
[1625508090270,7.34614,2220.2,2219.9,2.20527]
[1625508090699,7.34614,2220.2,2218.0,15.0167]
[1625508091468,7.34614,2220.2,2216.8,14.7751]
[1625508092167,7.34614,2220.2,2219.2,2.20527]
[1625508092270,7.34614,2220.2,2216.8,14.7751]
[1625508092771,5.14087,2220.2,2218.2,0.9052]
[1625508092872,2.20527,2220.2,2216.8,14.7751]
[1625508093544,2.20527,2220.2,2217.2,0.9101]
[1625508094036,2.20527,2220.2,2217.3,5.0]
[1625508094131,2.20527,2220.2,2217.2,0.9101]
[1625508094226,2.20527,2220.2,2220.1,4.41054]
[1625508094424,2.6612,2222.1,2220.1,4.41054]
[1625508094529,14.9888,2222.4,2220.1,4.41054]
[1625508094729,5.0,2224.6,2220.1,4.41054]
[1625508095030,15.0955,2224.5,2220.1,4.41054]
[1625508095229,15.0955,2224.5,2220.2,16.31005]
[1625508095340,0.14413403,2224.4,2220.2,16.31005]
[1625508095429,16.54586703,2224.4,2220.2,16.31005]
[1625508095530,16.54586703,2224.4,2220.1,4.41054]
[1625508095683,0.14415742,2224.3,2220.1,4.41054]
[1625508095784,0.14415742,2224.3,2220.2,16.43075]
[1625508095981,21.47323342,2224.3,2220.2,16.43075]
[1625508096131,21.329076,2224.3,2220.1,4.41054]
[1625508096231,2.20527,2221.3,2221.0,2.20527]
[1625508096434,2.20527,2221.5,2221.0,2.20527]
[1625508096734,3.1703,2221.9,2221.0,2.20527]
[1625508096833,2.1467,2224.4,2221.0,2.20527]
[1625508096933,0.14409928,2224.1,2221.0,2.20527]
[1625508097036,0.14409928,2224.1,2221.0,5.49717]
[1625508097203,1.1,2227.6,2221.0,5.49717]
[1625508097456,16.370349,2224.0,2221.0,5.49717]
[1625508097751,2.5204,2224.4,2221.0,5.49717]
[1625508097951,2.5204,2224.4,2221.1,16.2736]
[1625508098210,2.20527,2222.5,2222.4,2.20527]
[1625508100271,4.41054,2222.5,2222.4,2.20527]
[1625508103227,3.3974,2223.0,2222.4,2.20527]
[1625508103830,14.6238,2224.9,2222.4,2.20527]
[1625508103926,13.3215,2227.6,2222.4,2.20527]
[1625508104327,2.20527,2224.5,2224.4,2.20527]
[1625508106339,4.41054,2224.5,2224.4,2.20527]
[1625508107063,6.60054,2224.5,2222.1,14.2701]
[1625508108334,2.20527,2223.6,2223.5,2.20527]
[1625508109542,4.38547,2223.6,2222.1,14.2701]
[1625508109843,4.38547,2223.6,2220.4,42.095]
[1625508110292,2.20527,2222.7,2222.3,2.20527]
[1625508110895,3.4649,2223.1,2222.3,2.20527]
[1625508111962,15.1347,2224.5,2222.3,2.20527]
[1625508112249,5.9031,2226.0,2222.3,2.20527]
[1625508112349,2.20527,2223.1,2223.0,2.20527]
[1625508112750,4.55367,2223.1,2220.4,42.095]
[1625508113404,4.55367,2223.1,2220.5,16.470781]
[1625508114364,2.20527,2222.4,2222.3,2.20527]
[1625508115471,3.3392,2223.6,2222.3,2.20527]
[1625508115980,41.4932,2225.2,2222.3,2.20527]
[1625508116385,2.20527,2223.2,2223.1,2.20527]
[1625508116709,16.208536,2225.1,2223.1,2.20527]
[1625508116930,13.7723,2225.9,2223.1,4.89607]
[1625508117234,5.0,2226.5,2223.1,4.89607]
[1625508117435,0.14538381,2226.4,2223.1,4.89607]
[1625508117532,16.43602,2225.8,2223.1,4.89607]
[1625508117835,13.9044,2227.3,2223.1,4.89607]
[1625508118050,0.14576949,2227.2,2223.1,4.89607]
[1625508118335,2.20527,2224.3,2224.2,2.20527]
[1625508118536,2.20527,2224.3,2224.2,4.60517]
[1625508119239,2.20527,2224.5,2224.2,4.60517]
[1625508119341,3.2575,2226.7,2224.2,4.60517]
[1625508119439,0.05,2227.6,2224.2,4.60517]
[1625508119739,14.2585,2228.6,2224.2,4.60517]
[1625508120039,14.2585,2228.6,2224.2,60.16077]
[1625508120337,14.2585,2228.6,2226.4,2.20527]
[1625508120338,2.20527,2226.5,2226.4,2.20527]
[1625508120839,2.20527,2226.5,2226.2,2.20527]
[1625508122362,2.20527,2226.5,2226.2,4.41054]
[1625508123495,14.2585,2228.6,2226.2,4.41054]
[1625508123696,14.2585,2228.6,2226.2,6.85714]
[1625508123795,14.1118,2230.0,2226.2,6.85714]
[1625508124400,2.20527,2227.8,2227.7,2.20527]
[1625508124919,2.20527,2227.8,2227.7,7e-05]
[1625508125001,2.20527,2227.8,2227.5,2.20527]
[1625508127776,2.20527,2228.0,2227.5,2.20527]
[1625508127880,2.20527,2228.0,2227.5,5.23197]
[1625508127974,14.1118,2230.0,2227.5,5.23197]
[1625508128069,4.759,2230.1,2227.5,5.23197]
[1625508128475,2.20527,2228.6,2228.5,2.20527]
[1625508128542,4.759,2230.1,2228.5,4.77497]
[1625508129040,4.759,2231.5,2228.5,4.77497]
[1625508129226,4.759,2231.5,2228.6,16.327473]
[1625508129529,4.759,2231.5,2228.5,4.77497]
[1625508130485,2.20527,2230.3,2230.2,2.20527]
[1625508130987,2.20527,2230.3,2229.9,2.20527]
[1625508132437,2.20527,2230.3,2230.2,2.20527]
[1625508132743,2.20527,2230.5,2230.2,2.20527]
[1625508133195,4.63107,2230.5,2227.6,14.6876]
[1625508133842,4.63107,2230.5,2227.7,16.195254]
[1625508133991,4.63107,2230.5,2227.7,19.669054]
[1625508134192,9.39007,2230.5,2227.7,19.669054]
[1625508134442,2.20527,2229.6,2229.5,2.20527]
[1625508136695,2.20527,2229.6,2229.2,2.20527]
[1625508137000,4.58047,2229.6,2227.5,0.05]
[1625508137221,4.58047,2229.6,2224.3,15.1859]
[1625508137500,4.58047,2229.6,2224.3,20.1859]
[1625508137600,4.58047,2229.6,2224.4,1.0]
[1625508137700,4.58047,2229.6,2227.2,16.155968]
[1625508137898,4.58047,2229.6,2224.8,2.8666]
[1625508138104,4.58047,2229.6,2225.1,0.8894]
[1625508138450,2.20527,2228.4,2228.3,2.20527]
[1625508139049,2.6697,2228.8,2228.3,2.20527]
[1625508139552,2.3752,2229.6,2228.3,2.20527]
[1625508140404,2.3752,2229.6,2225.2,15.923]
[1625508140509,2.20527,2227.5,2227.4,2.20527]
[1625508140617,4.80037,2227.5,2227.4,2.20527]
[1625508141507,2.5951,2227.5,2227.4,2.20527]
[1625508141706,3.0556,2228.6,2227.4,2.20527]
[1625508142513,2.20527,2227.5,2227.4,2.20527]
[1625508142612,5.16507,2227.5,2227.4,2.20527]
[1625508142881,2.9598,2227.5,2227.4,2.20527]
[1625508143471,2.20527,2227.6,2227.4,2.20527]
[1625508143578,2.3752,2229.6,2227.4,2.20527]
[1625508143665,4.13107037,2233.1,2227.4,2.20527]
[1625508143764,0.14401418,2231.1,2227.4,2.20527]
[1625508143869,3.24201418,2231.1,2227.4,2.20527]
[1625508143969,0.14401071,2231.0,2227.4,2.20527]
[1625508144266,16.38018471,2231.0,2227.4,2.20527]
[1625508144468,2.20527,2228.1,2228.0,2.20527]
[1625508144566,5.03337,2228.1,2228.0,2.20527]
[1625508144667,5.03337,2228.1,2227.4,2.20527]
[1625508145729,5.03337,2228.1,2225.4,14.9075]
[1625508146431,5.03337,2228.1,2225.5,16.440435]
[1625508146529,5.03337,2228.1,2226.8,2.20527]
[1625508146530,2.20527,2226.9,2226.8,2.20527]
[1625508148534,4.41054,2226.9,2226.8,2.20527]
[1625508149690,33.6045,2229.8,2226.8,2.20527]
[1625508149789,14.4416,2229.8,2226.8,4.89637]
[1625508149988,0.14393274,2229.7,2226.8,4.89637]
[1625508150591,2.20527,2227.8,2227.7,2.20527]
[1625508150690,2.20527,2227.8,2226.8,2.6911]
[1625508152446,2.20527,2227.8,2225.4,14.9075]
[1625508152545,2.20527,2226.9,2226.8,2.20527]
[1625508153553,14.4416,2229.8,2226.8,4.48547]
[1625508153850,0.14435322,2229.7,2226.8,4.48547]
[1625508154201,14.4416,2229.8,2226.8,4.48547]
[1625508154555,2.20527,2227.2,2227.1,2.20527]
[1625508156604,4.41054,2227.2,2226.8,2.20527]
[1625508156805,4.41054,2227.2,2225.4,14.9075]
[1625508157475,4.41054,2227.2,2225.5,16.165983]
[1625508157919,5.0,2228.1,2225.5,16.165983]
[1625508158571,2.20527,2226.7,2226.6,2.20527]
[1625508159931,1.0,2228.4,2226.6,2.20527]
[1625508160032,14.3547,2229.7,2226.6,2.20527]
[1625508160281,5.0,2229.0,2226.6,2.20527]
[1625508160580,2.20527,2227.0,2226.9,2.20527]
[1625508161639,6.0,2228.7,2226.9,2.20527]
[1625508161739,5.0,2228.7,2226.9,2.20527]
[1625508162141,14.3547,2229.7,2226.9,2.20527]
[1625508162445,5.0,2229.6,2226.9,2.20527]
[1625508162640,4.41054,2227.0,2226.9,2.20527]
[1625508163141,4.41054,2227.0,2222.7,1.2091884]
[1625508163441,4.41054,2227.0,2223.1,1.1]
[1625508163692,4.41054,2227.0,2224.0,5.0]
[1625508163790,4.41054,2227.0,2224.3,14.2128]
[1625508163890,4.41054,2227.0,2224.3,15.2128]
[1625508163993,7.48734,2227.0,2224.3,15.2128]
[1625508164591,2.20527,2225.9,2225.8,2.20527]
[1625508164993,1.0,2227.6,2225.8,5.19667]
[1625508165095,1.0,2229.2,2225.8,5.19667]
[1625508165494,8.28062541,2230.9,2225.8,5.19667]
[1625508165696,15.1587,2229.6,2225.8,5.19667]
[1625508165898,15.1587,2229.6,2225.8,2.9914]
[1625508165998,16.173014,2229.2,2225.7,1.0]
[1625508166101,5.0,2229.1,2225.6,2.20527]
[1625508166199,4.6942,2228.8,2225.6,2.20527]
[1625508166299,5.0,2228.7,2225.6,2.20527]
[1625508166411,5.8918,2228.7,2225.6,2.20527]
[1625508166499,22.072876,2228.7,2225.6,2.20527]
[1625508166598,4.41054,2225.7,2225.6,2.20527]
[1625508166700,7.96484,2225.7,2225.6,2.20527]
[1625508166803,7.96484,2225.7,2224.2,55.5556]
[1625508166913,7.96484,2225.7,2221.8,1.1]
[1625508167005,7.96484,2225.7,2221.9,1.0]
[1625508167211,12.96484,2225.7,2221.9,1.0]
[1625508167564,7.96484,2225.7,2221.9,1.0]
[1625508167615,12.96484,2225.7,2223.5,16.417595]
[1625508168020,12.96484,2225.7,2221.9,6.0]
[1625508168177,12.96484,2225.7,2221.9,1.0]
[1625508168382,12.96484,2225.7,2221.6,14.7301]
[1625508168481,13.96484,2225.7,2221.6,15.7301]
[1625508168590,8.96484,2225.7,2221.6,15.7301]
[1625508168679,8.96484,2225.7,2223.3,2.20527]
[1625508168680,2.20527,2223.4,2223.3,2.20527]
[1625508169165,1.13967728,2223.4,2223.3,2.20527]
[1625508169265,3.0884,2225.2,2223.3,2.20527]
[1625508169764,8.0884,2225.2,2223.3,2.20527]
[1625508170167,3.0884,2225.2,2223.3,2.20527]
[1625508170668,2.20527,2223.4,2223.3,2.20527]
[1625508172572,2.20527,2223.4,2221.3,1.05]
[1625508172673,2.20527,2222.5,2222.4,2.20527]
[1625508176297,2.20527,2222.5,2220.9,14.4866]
[1625508176698,2.20527,2221.9,2221.8,2.20527]
[1625508177054,4.1274,2224.4,2221.8,2.20527]
[1625508177150,1.29653777,2227.7,2221.8,4.63537]
[1625508177550,1.29643837,2227.8,2221.8,4.63537]
[1625508177901,1.0,2226.3,2221.8,4.63537]
[1625508178001,1.0,2226.1,2221.8,4.63537]
[1625508178101,5.0,2224.9,2221.8,4.63537]
[1625508178200,5.0,2224.7,2221.8,4.63537]
[1625508178300,8.3828,2224.7,2221.8,4.63537]
[1625508178537,3.3828,2224.7,2221.8,4.63537]
[1625508178640,1.0,2226.1,2221.8,4.63537]
[1625508178726,2.20527,2223.2,2223.1,2.20527]
[1625508178843,14.3095,2225.0,2223.1,5.38707]
[1625508179103,14.9491,2226.8,2223.1,3.1818]
[1625508179202,5.0,2225.5,2223.1,3.1818]
[1625508179758,1.15,2226.3,2223.1,3.1818]
[1625508180408,5.0,2225.4,2223.1,3.1818]
[1625508180576,7.5913,2225.4,2221.0,13.7355]
[1625508180757,2.20527,2221.3,2221.2,2.20527]
[1625508181360,1.74475797,2221.6,2221.2,2.20527]
[1625508181908,3.2862,2223.4,2221.2,2.20527]
[1625508182009,3.2862,2223.4,2221.2,5.00127]
[1625508182209,3.2862,2223.4,2221.3,16.419461]
[1625508182511,3.2862,2223.4,2221.2,2.20527]
[1625508182709,2.20527,2221.6,2221.2,4.41054]
[1625508184467,4.68547557,2221.6,2221.2,4.41054]
[1625508184767,4.68547557,2221.6,2221.5,2.20527]
[1625508185370,4.68547557,2221.6,2221.5,7e-05]
[1625508185467,4.68547557,2221.6,2219.0,14.2488]
[1625508186770,2.20527,2220.4,2220.3,2.20527]
[1625508187354,4.89167,2220.4,2219.0,14.2488]
[1625508187445,4.89167,2220.4,2218.1,69.0275]
[1625508187727,2.6864,2220.4,2218.1,69.0275]
[1625508187825,2.6864,2220.4,2218.2,5.0]
[1625508188125,2.6864,2220.4,2218.1,69.0275]
[1625508188327,2.3343,2222.7,2218.1,69.0275]
[1625508188426,2.3343,2222.7,2220.0,3.1644]
[1625508188527,7.3343,2222.7,2220.0,3.1644]
[1625508188678,2.3343,2222.7,2220.0,3.1644]
[1625508188778,2.20527,2221.0,2220.8,2.20527]
[1625508189681,2.4847,2223.1,2220.8,2.20527]
[1625508189832,2.4847,2223.1,2220.8,5.69507]
[1625508190033,15.1563,2223.5,2220.8,5.69507]
[1625508190034,15.1563,2223.5,2220.9,16.337916]
[1625508190331,0.8967,2224.8,2220.9,16.337916]
[1625508190635,15.2261,2224.7,2220.9,16.337916]
[1625508190785,2.20527,2222.1,2221.6,2.20527]
[1625508192189,2.20527,2222.1,2220.0,3.1644]
[1625508192293,4.35267,2222.1,2220.0,3.1644]
[1625508192398,4.35267,2222.1,2220.0,0.05]
[1625508192789,2.20527,2221.2,2220.9,2.20527]
[1625508193800,14.8781,2223.0,2220.9,2.20527]
[1625508193899,14.8781,2223.0,2220.9,5.42867]
[1625508194101,5.0,2223.8,2220.9,5.42867]
[1625508194463,5.0,2223.8,2221.0,16.339022]
[1625508194857,5.0,2223.8,2220.9,5.42867]
[1625508194858,2.20527,2221.7,2221.6,2.20527]
[1625508195259,2.20527,2221.7,2220.0,0.05]
[1625508195363,5.64477,2221.7,2220.0,0.05]
[1625508195910,3.4395,2221.7,2220.1,16.221774]
[1625508196459,1.0,2223.7,2220.1,16.221774]
[1625508196562,5.0,2223.8,2220.1,16.221774]
[1625508196861,2.20527,2221.6,2221.5,2.20527]
[1625508197260,2.20527,2221.8,2221.5,2.20527]
[1625508197882,1.0,2224.3,2221.5,2.20527]
[1625508197883,1.0,2224.3,2221.5,5.67867]
[1625508197982,13.8628,2224.4,2221.5,5.67867]
[1625508198763,13.8628,2224.4,2221.6,16.460407]
[1625508198861,2.20527,2223.4,2223.3,2.20527]
[1625508199062,13.8628,2224.4,2223.3,2.20527]
[1625508199164,5.0,2226.7,2223.3,2.20527]
[1625508200820,2.20527,2224.0,2223.9,2.20527]
[1625508201668,2.20527,2224.0,2223.3,2.20527]
[1625508201870,2.20527,2224.0,2222.8,14.3967]
[1625508202223,2.20527,2224.0,2222.3,39.128]
[1625508202870,2.20527,2224.0,2223.4,2.20527]
[1625508204927,4.41054,2224.0,2223.9,2.20527]
[1625508205126,15.1544,2226.0,2223.9,2.20527]
[1625508205428,14.2437,2226.8,2223.9,2.20527]
[1625508205530,50.1045,2226.9,2223.9,2.20527]
[1625508205628,5.0,2226.7,2223.9,2.20527]
[1625508206230,45.1045,2226.9,2223.9,2.20527]
[1625508206330,45.1045,2226.9,2224.0,16.280346]
[1625508206689,5.0,2226.8,2224.0,16.280346]
[1625508206933,2.20527,2225.7,2225.6,2.20527]
[1625508208437,14.8582,2227.8,2225.6,2.20527]
[1625508208537,14.4512,2227.9,2225.6,2.20527]
[1625508208737,5.0,2228.0,2225.6,2.20527]
[1625508208837,5.0,2227.8,2225.6,2.20527]
[1625508208940,2.20527,2226.4,2226.3,2.20527]
[1625508209065,5.0,2227.8,2226.3,2.20527]
[1625508209143,15.0244,2229.2,2226.3,2.20527]
[1625508209344,13.9244,2229.2,2226.3,2.20527]
[1625508209857,21.205315,2229.1,2226.3,2.20527]
[1625508210796,21.205315,2229.1,2226.1,2.20527]
[1625508210897,2.20527,2226.3,2226.1,2.20527]
[1625508210995,4.35607,2226.3,2226.1,2.20527]
[1625508211300,2.1508,2226.3,2226.1,2.20527]
[1625508212250,2.581,2227.7,2226.1,2.20527]
[1625508212605,2.547,2228.2,2226.1,2.20527]
[1625508212804,4.759,2229.4,2226.1,4.83447]
[1625508212911,2.20527,2228.6,2228.5,2.20527]
[1625508213013,2.20527,2228.6,2226.7,2.4129]
[1625508214368,2.20527,2228.6,2226.8,16.164771]
[1625508214567,2.20527,2228.6,2226.8,63.502371]
[1625508214985,2.20527,2228.6,2228.4,2.20527]
[1625508215770,5.32027,2228.6,2226.8,47.3376]
[1625508215867,5.32027,2228.6,2226.1,2.6292]
[1625508215967,5.32027,2228.6,2225.3,14.409]
[1625508216367,5.32027,2228.6,2225.3,19.409]
[1625508216578,5.32027,2228.6,2225.8,16.287288]
[1625508216986,5.46137,2227.3,2227.2,2.20527]
[1625508217120,5.46137,2227.3,2225.8,16.287288]
[1625508217321,5.46137,2227.3,2225.3,14.409]
[1625508218990,2.20527,2226.5,2226.4,2.20527]
[1625508219103,4.50947,2226.5,2225.3,14.409]
[1625508219393,4.50947,2226.5,2223.4,13.844]
[1625508220282,4.50947,2226.5,2223.5,16.421871]
[1625508220586,4.50947,2226.5,2223.5,21.421871]